fUSD/lending_fUSD_20241107
["ID","MTS","AMOUNT","RATE_DAILY","PERIOD"]
[341552230,1730973261616,500.0,0.00042997,60]
[341552231,1730973261664,1047.97,0.00042997,60]
[341552232,1730973261715,1882.78,0.00042997,60]
[341552233,1730973261763,500.0,0.00042997,60]
[341552234,1730973261811,1201.58,0.00042997,60]
[341552235,1730973261883,500.0,0.00042997,60]
[341552236,1730973261935,1047.97,0.00042997,60]
[341552237,1730973261987,1882.78,0.00042997,60]
[341552238,1730973262035,500.0,0.00042997,60]
[341552239,1730973262086,1201.58,0.00042997,60]
[341552240,1730973262132,500.0,0.00042997,60]
[341552241,1730973262178,1047.97,0.00042997,60]
[341552242,1730973262223,1882.78,0.00042997,60]
[341552243,1730973262266,500.0,0.00042997,60]
[341552244,1730973262310,500.0,0.00042997,60]
[341552245,1730973262354,1201.58,0.00042997,60]
[341552246,1730973262397,1047.97,0.00042997,60]
[341552247,1730973262439,500.0,0.00042997,60]
[341552248,1730973262481,1882.78,0.00042997,60]
[341552249,1730973262523,500.0,0.00042997,60]
[341552250,1730973262567,500.0,0.00042997,60]
[341552251,1730973262611,1047.97,0.00042997,60]
[341552252,1730973262653,1201.58,0.00042997,60]
[341552253,1730973262697,1882.78,0.00042997,60]
[341552254,1730973262741,500.0,0.00042997,60]
[341552255,1730973262784,500.0,0.00042997,60]
[341552256,1730973262828,1047.97,0.00042997,60]
[341552257,1730973262875,1201.58,0.00042997,60]
[341552258,1730973262920,1882.78,0.00042997,60]
[341552259,1730973262970,500.0,0.00042997,60]
[341552260,1730973263015,1047.97,0.00042997,60]
[341552261,1730973263066,1201.58,0.00042997,60]
[341552262,1730973263209,1882.78,0.00042997,60]
[341552263,1730973263255,500.0,0.00042997,60]
[341552264,1730973263301,1047.97,0.00042997,60]
[341552265,1730973263347,500.0,0.00042997,60]
[341552266,1730973263393,500.0,0.00042997,60]
[341552267,1730973263439,500.0,0.00042997,60]
[341552268,1730973263493,1201.58,0.00042997,60]
[341552269,1730973263540,1882.78,0.00042997,60]
[341552270,1730973263585,500.0,0.00042997,60]
[341552271,1730973263630,1047.97,0.00042997,60]
[341552272,1730973263685,50000.0,0.00042997,32]
[341552273,1730973263733,500.0,0.00042997,60]
[341552274,1730973263846,500.0,0.00042997,60]
[341552275,1730973263897,1201.58,0.00042997,60]
[341552276,1730973263997,1882.78,0.00042997,60]
[341552277,1730973264045,1047.97,0.00042997,60]
[341552278,1730973264100,500.0,0.00042997,60]
[341552279,1730973264151,500.0,0.00042997,60]
[341552280,1730973264199,1201.58,0.00042997,60]
[341552281,1730973264253,1882.78,0.00042997,60]
[341552282,1730973264301,1047.99505304,0.00042997,60]
[341552283,1730973264350,500.0,0.00042997,60]
[341552284,1730973264396,500.0,0.00042997,60]
[341552285,1730973264445,1201.58,0.00042997,60]
[341552286,1730973264493,500.0,0.00042997,60]
[341552287,1730973264541,607.0358555,0.00042997,60]
[341552288,1730973264590,1882.78,0.00042997,60]
[341552289,1730973264643,500.0,0.00042997,60]
[341552290,1730973264691,1201.58,0.00042997,60]
[341552291,1730973264738,500.0,0.00042997,60]
[341552292,1730973264790,1882.78,0.00042997,60]
[341552293,1730973264842,500.0,0.00042997,60]
[341552294,1730973264891,500.0,0.00042997,60]
[341552295,1730973264942,500.0,0.00042997,60]
[341552296,1730973264993,1882.78,0.00042997,60]
[341552297,1730973265046,500.0,0.00042997,60]
[341552298,1730973265094,500.0,0.00042997,60]
[341552299,1730973265142,500.0,0.00042997,60]
[341552300,1730973265197,1201.58477173,0.00042997,60]
[341552301,1730973265246,1882.78,0.00042997,60]
[341552302,1730973265302,500.0,0.00042997,60]
[341552303,1730973265349,204.59243554,0.00042997,60]
[341552304,1730973265396,500.0,0.00042997,60]
[341552305,1730973265445,1882.78156853,0.00042997,60]
[341552306,1730973265562,500.0,0.00042997,60]
[341552307,1730973265611,500.0,0.00042997,60]
[341552308,1730973265821,500.0,0.00042997,60]
[341552309,1730973265879,500.0,0.00042997,60]
[341552310,1730973266261,500.0,0.00042997,60]
[341552311,1730973266313,500.0,0.00042997,60]
[341552312,1730973266368,500.0,0.00042997,60]
[341552313,1730973266651,500.0,0.00042997,60]
[341552314,1730973266931,500.0,0.00042997,60]
[341552315,1730973267196,500.0,0.00042997,60]
[341552316,1730973267245,500.0,0.00042997,60]
[341552317,1730973267324,19653.96024795,0.00042997,33]
[341552318,1730973337371,220.69,0.00015342,2]
[341552320,1730973511267,150.0,0.00018123,2]
[341552321,1730973552741,150.0,0.00018123,2]
[341552322,1730973601359,300.0,0.00019725,2]
[341552324,1730973850914,159.29,0.00015342,2]
[341552325,1730973896276,150.24865567,0.00019626,2]
[341552326,1730973927519,5364.0,0.00019452,2]
[341552327,1730973949127,-220.69,0.00021745,2]
[341552328,1730973949149,-500.0,0.00024932,2]
[341552329,1730973949172,-1198.22,0.00027189,2]
[341552330,1730973949194,-500.0,0.000274,7]
[341552331,1730973949217,-220.69,0.00028147,2]
[341552332,1730973949240,-1339.42,0.0002853,2]
[341552333,1730973949261,-150.99,0.0002853,2]
[341552334,1730973949282,-200.0,0.00028662,7]
[341552335,1730973949307,-162.99,0.00028676,2]
[341552336,1730973949329,-153.34,0.000287,120]
[341552337,1730973949351,-163.71,0.00028934,2]
[341552338,1730973949375,-23900.0,0.00028954,2]
[341552339,1730973949399,-220.01,0.00028978,2]
[341552340,1730973949422,-183.4,0.00028988,2]
[341552341,1730973949444,-1339.42,0.00028989,2]
[341552342,1730973949466,-250.0,0.00029028,2]
[341552343,1730973949487,-250.0,0.00029056,2]
[341552344,1730973949508,-467.42,0.00029071,2]
[341552345,1730973949530,-252.16,0.00029317,2]
[341552346,1730973949551,-712.0,0.00029347,2]
[341552347,1730973949572,-251.99,0.00029391,30]
[341552348,1730973949594,-1339.42,0.00029447,2]
[341552349,1730973949616,-1198.22,0.00029453,2]
[341552350,1730973949639,-184.67,0.00029535,120]
[341552351,1730973949660,-200.0,0.000296,2]
[341552352,1730973949680,-22623.2769,0.0002974,2]
[341552353,1730973949700,-662.77,0.0002984,2]
[341552354,1730973949721,-1339.42,0.00029905,2]
[341552355,1730973949741,-3819.80830704,0.0003,5]
[341552357,1730974031082,-5097.33817981,0.00024832,2]
[341552358,1730974031105,-1101.89,0.00027254,2]
[341552359,1730974031126,-1101.89,0.00029518,2]
[341552360,1730974031145,-679.9999999,0.000299,2]
[341552361,1730974031170,-154.25,0.00029964,2]
[341552362,1730974031448,-6180.19169296,0.0003,5]
[341552363,1730974031468,-301.47841508,0.0003,4]
[341552364,1730974031488,-6758.09777365,0.00030036,2]
[341552365,1730974043089,-35531.43944586,0.00030036,2]
[341552366,1730974044097,-10104.58548049,0.00030036,2]
[341552367,1730974044122,-5517.632,0.00030103,2]
[341552368,1730974044143,-430.4,0.0003012,2]
[341552369,1730974044166,-3239.60891972,0.00030128,15]
[341552370,1730974044187,-500.0,0.00030136,4]
[341552371,1730974044208,-500.0,0.00030136,4]
[341552372,1730974044229,-500.0,0.00030136,4]
[341552373,1730974044250,-247.737788,0.00030136,4]
[341552374,1730974044270,-247.737788,0.00030136,4]
[341552375,1730974044292,-247.737788,0.00030136,4]
[341552376,1730974044312,-326.676747,0.00030136,4]
[341552377,1730974044336,-326.676747,0.00030136,4]
[341552378,1730974044359,-383.09,0.00030218,10]
[341552379,1730974044380,-5922.0,0.00030229,2]
[341552380,1730974044400,-1253.0,0.00030229,2]
[341552381,1730974044422,-452.0,0.00030229,2]
[341552382,1730974044442,-1989.0,0.00030229,2]
[341552383,1730974044464,-475.824,0.00030229,2]
[341552384,1730974044484,-1795.0,0.00030229,2]
[341552385,1730974044505,-2908.0,0.00030229,2]
[341552386,1730974044524,-1258.0,0.00030229,2]
[341552387,1730974044544,-663.831,0.00030229,2]
[341552388,1730974044564,-3374.0,0.00030229,2]
[341552389,1730974044583,-1157.0,0.00030229,2]
[341552390,1730974044605,-13614.0,0.00030229,2]
[341552391,1730974044623,-1090.0,0.00030229,2]
[341552392,1730974044644,-1339.42,0.00030364,2]
[341552393,1730974044667,-511.52,0.0003041,4]
[341552394,1730974044687,-423.121665,0.0003041,4]
[341552395,1730974044707,-500.0,0.0003041,4]
[341552396,1730974044728,-247.737788,0.0003041,4]
[341552397,1730974044747,-247.737788,0.0003041,4]
[341552398,1730974044770,-326.676747,0.0003041,4]
[341552399,1730974044792,-150.0,0.00030411,2]
[341552400,1730974044812,-150.0,0.00030411,2]
[341552401,1730974044833,-164.56,0.00030446,2]
[341552402,1730974044854,-151.44,0.000305,2]
[341552403,1730974044876,-296.65088724,0.00030684,4]
[341552404,1730974044897,-247.737788,0.00030684,4]
[341552405,1730974044918,-326.676747,0.00030684,4]
[341552406,1730974044938,-252.16,0.00030782,2]
[341552407,1730974044960,-1339.42,0.00030822,2]
[341552408,1730974044981,-151.91651,0.0003092,2]
[341552409,1730974045002,-475.64080629,0.00031184,2]
[341552410,1730974045023,-500.0,0.00031232,4]
[341552411,1730974045043,-818.0,0.00031232,4]
[341552412,1730974045319,-150.0,0.00031232,4]
[341552413,1730974045343,-500.0,0.00031232,4]
[341552414,1730974045365,-150.0,0.00031232,4]
[341552415,1730974045385,-150.0,0.00031232,4]
[341552416,1730974045406,-150.0,0.00031232,4]
[341552417,1730974045427,-500.0,0.00031232,4]
[341552418,1730974045447,-500.0,0.00031232,4]
[341552419,1730974045467,-26694.7021787,0.00031259,2]
[341552420,1730974045487,-1339.42,0.00031281,2]
[341552421,1730974045508,-343.9587,0.00031292,2]
[341552422,1730974045527,-151.91651,0.0003131,2]
[341552423,1730974045548,-247.737788,0.00031391,4]
[341552424,1730974045568,-326.676747,0.00031391,4]
[341552425,1730974045587,-250.0,0.00031392,2]
[341552426,1730974045607,-150.0,0.00031392,2]
[341552427,1730974045628,-1474.187504,0.000314,8]
[341552428,1730974045652,-3239.60891972,0.00031425,15]
[341552429,1730974045673,-6062.44189995,0.0003143,4]
[341552430,1730974200839,1001.00014632,0.0002662,15]
[341552436,1730974232243,-167.42,0.00029979,2]
[341552437,1730974232252,-167.42,0.00030461,2]
[341552438,1730974232261,-658.53,0.00030587,120]
[341552439,1730974232271,-126.88,0.00030943,2]
[341552440,1730974232303,-40.54,0.00030943,2]
[341552441,1730974232312,-239.39,0.00030988,30]
[341552442,1730974232322,-484.2293386,0.00031232,2]
[341552443,1730974232337,-15.7706614,0.00031232,2]
[341552444,1730974232347,-500.0,0.00031232,2]
[341552445,1730974232356,-500.0,0.00031232,2]
[341552446,1730974232366,-500.0,0.00031232,2]
[341552447,1730974232376,-500.0,0.00031232,2]
[341552448,1730974232387,-500.0,0.00031232,2]
[341552449,1730974232396,-500.0,0.00031232,2]
[341552450,1730974232408,-500.0,0.00031232,2]
[341552451,1730974232417,-500.0,0.00031232,2]
[341552452,1730974232426,-500.0,0.00031232,2]
[341552453,1730974232436,-500.0,0.00031232,2]
[341552454,1730974232448,-500.0,0.00031232,2]
[341552455,1730974232458,-500.0,0.00031232,2]
[341552456,1730974232468,-500.0,0.00031232,2]
[341552457,1730974232480,-500.0,0.00031232,2]
[341552458,1730974232490,-500.0,0.00031232,2]
[341552459,1730974232500,-500.0,0.00031232,2]
[341552460,1730974232510,-500.0,0.00031232,2]
[341552461,1730974232519,-500.0,0.00031232,2]
[341552462,1730974232529,-500.0,0.00031232,2]
[341552463,1730974232538,-500.0,0.00031232,2]
[341552464,1730974232547,-500.0,0.00031232,2]
[341552465,1730974232557,-500.0,0.00031232,2]
[341552466,1730974232567,-500.0,0.00031232,2]
[341552467,1730974232577,-500.0,0.00031232,2]
[341552468,1730974232586,-500.0,0.00031232,2]
[341552469,1730974232596,-500.0,0.00031232,2]
[341552470,1730974232605,-500.0,0.00031232,2]
[341552471,1730974232616,-500.0,0.00031232,2]
[341552473,1730974232626,-500.0,0.00031232,2]
[341552475,1730974232634,-500.0,0.00031232,2]
[341552477,1730974232644,-500.0,0.00031232,2]
[341552479,1730974232653,-500.0,0.00031232,2]
[341552481,1730974232662,-500.0,0.00031232,2]
[341552482,1730974232671,-500.0,0.00031232,2]
[341552484,1730974232681,-500.0,0.00031232,2]
[341552486,1730974232690,-396.36733857,0.00031391,2]
[341552489,1730974232699,-169.098,0.00031395,2]
[341552490,1730974232708,-13614.0,0.00031395,2]
[341552491,1730974232718,-2494.51945067,0.00031395,2]
[341552492,1730974233051,-1835.4217019,0.00031395,2]
[341552493,1730974233063,-1592.05884743,0.00031395,2]
[341552494,1730974233072,-265.723,0.00031395,2]
[341552495,1730974233082,-167.42,0.00031424,2]
[341552496,1730974233092,-884.21951292,0.0003143,4]
[341552497,1730974233103,-6053.93480615,0.0003143,4]
[341552498,1730974233115,-1797.00817212,0.0003143,4]
[341552499,1730974233124,-469.49666,0.0003143,2]
[341552500,1730974233133,-500.0,0.0003143,2]
[341552501,1730974233143,-500.0,0.0003143,2]
[341552502,1730974233153,-500.0,0.0003143,2]
[341552503,1730974233162,-500.0,0.0003143,2]
[341552504,1730974233172,-500.0,0.0003143,2]
[341552505,1730974233181,-500.0,0.0003143,2]
[341552506,1730974233190,-500.0,0.0003143,2]
[341552507,1730974233200,-500.0,0.0003143,2]
[341552508,1730974233209,-500.0,0.0003143,2]
[341552509,1730974233220,-500.0,0.0003143,2]
[341552510,1730974233231,-500.0,0.0003143,2]
[341552511,1730974233240,-500.0,0.0003143,2]
[341552512,1730974233249,-500.0,0.0003143,2]
[341552513,1730974233258,-500.0,0.0003143,2]
[341552514,1730974233268,-500.0,0.0003143,2]
[341552515,1730974233277,-500.0,0.0003143,2]
[341552516,1730974233286,-500.0,0.0003143,2]
[341552517,1730974233296,-500.0,0.0003143,2]
[341552518,1730974233305,-204.2,0.00031444,2]
[341552519,1730974233314,-468.467533,0.0003147,7]
[341552520,1730974233323,-326.676747,0.00031492,4]
[341552521,1730974233333,-247.737788,0.00031494,4]
[341552522,1730974233342,-247.737788,0.00031494,4]
[341552523,1730974233352,-326.676747,0.00031494,4]
[341552524,1730974233361,-326.676747,0.00031494,4]
[341552525,1730974233370,-150.110719,0.00031498,4]
[341552526,1730974233379,-1000.0,0.000315,7]
[341552527,1730974233388,-319.24,0.0003152,10]
[341552528,1730974233397,-88115.49896209,0.0003153,7]
[341552529,1730974233410,-500.0,0.00031573,5]
[341552530,1730974233419,-2591.68713583,0.0003158,15]
[341552531,1730974233429,-247.737788,0.00031597,4]
[341552532,1730974233439,-326.676747,0.00031597,4]
[341552533,1730974233450,-500.0,0.00031673,5]
[341552534,1730974233459,-32350.72604759,0.0003168,7]
[341552535,1730974233469,-30529.89751137,0.0003168,2]
[341552536,1730974233478,-299.05884017,0.00031773,5]
[341552537,1730974233489,-1101.89,0.00031782,2]
[341552538,1730974233499,-1678.9726938,0.000318,2]
[341552539,1730974233508,-2851.0,0.00031847,9]
[341552540,1730974233517,-500.0,0.00031847,9]
[341552541,1730974233526,-150.0,0.00031847,9]
[341552542,1730974233536,-500.0,0.00031847,9]
[341552543,1730974233545,-500.0,0.00031847,9]
[341552544,1730974233554,-500.0,0.00031847,9]
[341552545,1730974233564,-500.0,0.00031847,9]
[341552546,1730974233574,-150.0,0.00031847,9]
[341552547,1730974233583,-150.0,0.00031847,9]
[341552548,1730974233591,-777.0,0.00031847,9]
[341552549,1730974233601,-150.0,0.00031847,9]
[341552550,1730974233610,-500.0,0.0003187,2]
[341552551,1730974233619,-660.38411115,0.0003187,2]
[341552552,1730974233629,-167.42,0.00031906,2]
[341552553,1730974233638,-500.0,0.00031999,2]
[341552554,1730974233648,-500.0,0.00031999,2]
[341552555,1730974233657,-38311.44756016,0.00032,2]
[341552556,1730974233667,-500.0,0.00032121,9]
[341552557,1730974233676,-150.0,0.00032121,9]
[341552558,1730974233685,-500.0,0.00032121,9]
[341552559,1730974233694,-500.0,0.00032121,9]
[341552560,1730974233704,-620.40756734,0.00032121,9]
[341552561,1730974233713,-500.0,0.00032121,9]
[341552562,1730974233722,-200.0,0.00032121,9]
[341552563,1730974233732,-150.0,0.00032121,9]
[341552564,1730974233741,-777.0,0.00032121,9]
[341552565,1730974233750,-247.737788,0.00032145,4]
[341552566,1730974233759,-326.676747,0.00032145,4]
[341552567,1730974233768,-252.16,0.00032248,2]
[341552568,1730974233777,-166.21,0.00032287,2]
[341552569,1730974233787,-7123.85699302,0.00032328,2]
[341552570,1730974233796,-167.42,0.00032388,2]
[341552571,1730974233806,-919.60500977,0.00032395,9]
[341552572,1730974233815,-150.0,0.00032395,9]
[341552573,1730974233824,-500.0,0.00032395,9]
[341552574,1730974233833,-307.28407357,0.00032395,9]
[341552575,1730974233846,-192.71592643,0.00032395,9]
[341552576,1730974233855,-500.0,0.00032395,9]
[341552577,1730974233865,-190.29136077,0.00032395,9]
[341552578,1730974233874,-777.0,0.00032395,9]
[341552579,1730974233884,-1295.11,0.000324,2]
[341552580,1730974233893,-42.2827128,0.00032419,4]
[341552581,1730974233960,-200.0,0.00032121,9]
[341552582,1730974233969,-205.4550752,0.00032419,4]
[341552583,1730974233979,-284.7277375,0.00032419,4]
[341552584,1730974233990,-41.9490095,0.00032419,4]
[341552585,1730974234000,-150.110719,0.00032498,2]
[341552586,1730974234009,-150.110719,0.00032498,3]
[341552587,1730974234018,-150.110719,0.00032498,4]
[341552588,1730974234028,-180.14769593,0.00032669,9]
[341552589,1730974234067,-22.41099327,0.00032669,9]
[341552590,1730974234076,-500.0,0.00032669,9]
[341552591,1730974234086,-16.46900673,0.00032669,9]
[341552596,1730974238552,-330.30611548,0.00031391,2]
[341552597,1730974238563,-119.42855852,0.0003152,10]
[341552598,1730974238662,-146.61144148,0.0003152,10]
[341552599,1730974238672,-500.0,0.00031999,2]
[341552600,1730974238681,-448.06528183,0.00031999,2]
[341552601,1730974238690,-500.0,0.00031999,2]
[341552602,1730974238702,-500.0,0.00031999,2]
[341552603,1730974238711,-500.0,0.00031999,2]
[341552604,1730974238720,-483.53099327,0.00032669,9]
[341552605,1730974238729,-777.0,0.00032669,9]
[341552606,1730974238739,-247.737788,0.00032693,4]
[341552607,1730974238748,-326.676747,0.00032693,4]
[341552608,1730974238758,-2591.68713577,0.00032766,15]
[341552609,1730974238767,-500.0,0.00032778,5]
[341552610,1730974238778,-2000.0,0.00032835,2]
[341552611,1730974238789,-2002.2589,0.00032835,2]
[341552612,1730974238799,-2000.0,0.00032835,2]
[341552613,1730974238808,-500.0,0.00032867,5]
[341552614,1730974238818,-167.42,0.0003287,2]
[341552615,1730974238827,-500.0,0.00032876,2]
[341552616,1730974238837,-190.40025445,0.00032877,2]
[341552617,1730974238846,-500.0,0.0003288,5]
[341552618,1730974238856,-500.0,0.0003288,5]
[341552619,1730974238866,-1500.0,0.000329,30]
[341552620,1730974238875,-500.0,0.000329,5]
[341552621,1730974238886,-500.0,0.000329,5]
[341552622,1730974238895,-500.0,0.000329,2]
[341552623,1730974238906,-1360.998046,0.0003292,12]
[341552624,1730974238915,-1000.0,0.0003294,12]
[341552625,1730974238924,-1000.0,0.00032942,5]
[341552626,1730974238934,-500.0,0.00032943,9]
[341552627,1730974238943,-500.0,0.00032943,9]
[341552628,1730974238953,-777.0,0.00032943,9]
[341552629,1730974238962,-1000.0,0.0003296,12]
[341552630,1730974238972,-247.737788,0.00032967,4]
[341552631,1730974238981,-326.676747,0.00032967,4]
[341552632,1730974238991,-500.0,0.0003297,2]
[341552633,1730974239000,-1000.0,0.0003298,12]
[341552634,1730974239010,-550.0,0.00033,2]
[341552635,1730974239020,-818.5029182,0.00033,34]
[341552636,1730974239029,-505.40047,0.00033,14]
[341552637,1730974239039,-1000.0,0.00033,12]
[341552638,1730974239049,-712.0,0.00033015,2]
[341552639,1730974239058,-200.0,0.00033016,120]
[341552640,1730974239068,-506.4532149,0.00033042,5]
[341552641,1730974239077,-500.0,0.00033093,120]
[341552642,1730974239090,-1331.04,0.0003315,14]
[341552643,1730974239099,-180.0,0.00033151,2]
[341552644,1730974239109,-1000.0,0.00033151,2]
[341552645,1730974239119,-2000.0,0.00033151,2]
[341552646,1730974239128,-500.0,0.00033217,9]
[341552647,1730974239137,-500.0,0.00033217,9]
[341552648,1730974239146,-777.0,0.00033217,9]
[341552649,1730974239155,-195.09,0.00033229,2]
[341552650,1730974239165,-452.0,0.00033229,2]
[341552651,1730974239174,-1989.0,0.00033229,2]
[341552652,1730974239183,-1795.0,0.00033229,2]
[341552653,1730974239192,-2908.0,0.00033229,2]
[341552654,1730974239202,-1258.0,0.00033229,2]
[341552655,1730974239211,-167.42,0.00033351,2]
[341552656,1730974239221,-152.0,0.00033356,3]
[341552657,1730974239230,-1331.04,0.00033424,14]
[341552658,1730974239239,-1000.0,0.00033425,2]
[341552659,1730974239248,-2000.0,0.00033425,2]
[341552660,1730974239258,-228.87060267,0.00033431,2]
[341552661,1730974239267,-500.0,0.00033491,9]
[341552662,1730974239276,-500.0,0.00033491,9]
[341552663,1730974239286,-777.0,0.00033491,9]
[341552664,1730974239295,-150.110719,0.00033498,4]
[341552665,1730974239305,-150.110719,0.00033498,3]
[341552666,1730974239315,-150.110719,0.00033498,2]
[341552667,1730974239324,-1130.88,0.000335,14]
[341552668,1730974239333,-239.39,0.00033572,120]
[341552669,1730974239343,-500.0,0.0003361,30]
[341552670,1730974239352,-500.0,0.0003361,30]
[341552671,1730974239361,-500.0,0.0003361,30]
[341552672,1730974239370,-500.0,0.0003361,30]
[341552673,1730974239380,-520.04604884,0.0003361,30]
[341552674,1730974239389,-500.0,0.0003361,30]
[341552675,1730974239404,-500.0,0.0003361,30]
[341552676,1730974239415,-558.12344265,0.0003361,30]
[341552677,1730974239424,-504.33733414,0.0003361,30]
[341552678,1730974239433,-500.0,0.0003361,30]
[341552679,1730974239444,-692.38155969,0.0003361,30]
[341552680,1730974239453,-500.0,0.0003361,30]
[341552681,1730974239463,-500.0,0.0003361,30]
[341552682,1730974239473,-504.96841451,0.0003361,30]
[341552683,1730974239482,-505.70869983,0.0003361,30]
[341552684,1730974239491,-500.0,0.0003361,30]
[341552685,1730974239501,-640.29951743,0.0003361,30]
[341552686,1730974239510,-500.0,0.0003361,30]
[341552687,1730974239520,-500.0,0.0003361,30]
[341552688,1730974239529,-500.0,0.0003361,30]
[341552689,1730974239540,-786.35163831,0.0003361,30]
[341552690,1730974239549,-1331.04,0.00033698,14]
[341552691,1730974239559,-1000.0,0.00033699,2]
[341552692,1730974239568,-2000.0,0.00033699,2]
[341552693,1730974239578,-300.0,0.000337,2]
[341552694,1730974239587,-252.16,0.00033714,2]
[341552695,1730974239596,-889.00018309,0.00033765,9]
[341552696,1730974239606,-518.53810535,0.00033765,9]
[341552697,1730974239616,-777.0,0.00033765,9]
[341552698,1730974239628,-151314.63627302,0.000338,3]
[341552699,1730974239906,-1282.54144598,0.000338,3]
[341552700,1730974239916,-125598.83344918,0.0003388,3]
[341552701,1730974240058,-26998.34426982,0.0003388,3]
[341552702,1730974240068,-430.4,0.00033885,2]
[341552703,1730974240078,-37865.10488194,0.0003389,3]
[341552704,1730974240089,-3882.38222318,0.0003389,3]
[341552705,1730974240330,-1090.0,0.00031395,2]
[341552706,1730974240340,-7064.05264644,0.0003389,3]
[341552707,1730974240354,-8226.54603792,0.0003389,3]
[341552708,1730974240375,-70437.40092774,0.0003389,3]
[341552721,1730974244452,-275.25509623,0.00032497,2]
[341552722,1730974244462,-55641.12654578,0.0003389,3]
[341552723,1730974244474,-99140.07970152,0.000339,3]
[341552724,1730974244488,-257.23070056,0.000339,3]
[341552756,1730974246407,-221.7,0.00033755,10]
[341552757,1730974246417,-2153.31511796,0.000339,3]
[341552758,1730974246861,-187588.58847082,0.000339,3]
[341552759,1730974246873,-3931.24741529,0.000339,3]
[341552760,1730974247480,-38813.95423785,0.000339,3]
[341552761,1730974247491,-2591.68713577,0.00033952,15]
[341552762,1730974247500,-1331.04,0.00033972,14]
[341552763,1730974247509,-1000.0,0.00033973,2]
[341552764,1730974247519,-2000.0,0.00033973,2]
[341552765,1730974247528,-30519.4355438,0.0003398,3]
[341552766,1730974247537,-30171.3105131,0.0003398,3]
[341552767,1730974247551,-3726.5005531,0.00034,5]
[341552768,1730974247560,-598.8,0.00034,3]
[341552769,1730974247569,-1800.0,0.00034,35]
[341552770,1730974247578,-266.762466,0.00034,30]
[341552771,1730974247587,-777.0,0.00034039,9]
[341552772,1730974247595,-1101.89,0.00034046,2]
[341552773,1730974247604,-228.87060267,0.00034049,2]
[341552774,1730974247613,-1000.0,0.00034148,5]
[341552775,1730974247622,-1130.88,0.000342,14]
[341552776,1730974247631,-1000.0,0.00034237,5]
[341552777,1730974247641,-1331.04,0.00034246,14]
[341552778,1730974247650,-7123.85699302,0.00034246,2]
[341552779,1730974247660,-1000.0,0.00034247,2]
[341552780,1730974247669,-2000.0,0.00034247,2]
[341552781,1730974247678,-1000.0,0.0003425,5]
[341552782,1730974247688,-167.46263216,0.0003425,5]
[341552783,1730974262767,150.0,0.00018123,2]
[341552784,1730974363702,158.25,0.00015342,2]
[341552786,1730974803204,150.0,0.00015342,2]
[341552787,1730974820539,24328.0,0.0002662,15]
[341552789,1730975078983,150.0,0.000201,2]
[341552790,1730975108583,235686.75,0.00016,2]
[341552791,1730975108608,185076.54226353,0.00016,2]
[341552792,1730975108631,495118.24804688,0.00016,2]
[341552793,1730975130030,4546.42535726,0.000101,2]
[341552794,1730975137019,18040.68,9e-05,2]
[341552795,1730975155691,603.68543862,0.0001892,2]